bitfinex-derivatives/quotes_ETHF0:USTF0_20210406
["timestamp","ask_amount","ask_price","bid_price","bid_amount"]
[1617741729683,0.6696321,2119.5,2119.1,5.83]
[1617741729880,0.6696321,2119.5,2119.1,2.6608]
[1617741730282,0.6696321,2119.5,2119.1,8.6008]
[1617741730683,0.6696321,2119.5,2119.3,2.90695]
[1617741730883,0.66988409,2119.4,2119.3,2.90695]
[1617741731283,0.66988409,2119.4,2119.3,8.59695]
[1617741732483,0.66984593,2119.5,2119.3,8.59695]
[1617741732683,2.90695,2119.4,2119.3,8.59695]
[1617741749200,2.90695,2119.4,2119.3,5.69]
[1617741749600,2.90695,2119.4,2118.7,5.65]
[1617741750000,2.90695,2119.4,2119.3,5.75]
[1617741750201,2.90695,2119.4,2118.7,5.87]
[1617741750600,2.90695,2119.4,2119.3,5.86]
[1617741751000,2.90695,2119.4,2118.8,2.90695]
[1617741751200,2.90695,2119.4,2118.9,5.94]
[1617741752801,2.90695,2119.0,2118.9,5.94]
[1617741753202,5.50245,2119.0,2118.9,5.94]
[1617741758112,5.50245,2119.0,2118.9,10.54]
[1617741762517,2.90695,2119.0,2118.9,10.54]
[1617741772934,5.13265,2119.0,2118.9,10.54]
[1617741776539,2.90695,2119.0,2118.9,10.54]
[1617741777139,2.90695,2119.0,2118.9,13.44695]
[1617741777539,2.90695,2119.0,2118.9,16.34245]
[1617741778542,0.66814265,2119.8,2118.9,16.34245]
[1617741778745,0.66824931,2119.9,2118.9,16.34245]
[1617741779146,0.6682371,2120.0,2119.4,2.90695]
[1617741779342,0.6682371,2120.0,2119.4,5.66945]
[1617741779544,0.6682371,2120.0,2119.5,5.91]
[1617741781246,2.90695,2119.6,2119.5,5.91]
[1617741790453,2.90695,2119.6,2119.5,5.4271]
[1617741793055,0.66878215,2120.1,2119.5,8.0409]
[1617741793455,0.66874576,2120.3,2119.5,8.0409]
[1617741793655,3.57569576,2120.3,2120.0,4.91845]
[1617741793854,3.57569576,2120.3,2120.1,5.77]
[1617741794059,2.90695,2120.3,2120.1,5.77]
[1617741794956,3.84485,2120.3,2120.1,5.77]
[1617741795153,2.90695,2120.3,2120.1,5.77]
[1617741796054,0.66864971,2120.6,2120.1,5.77]
[1617741796255,0.66860533,2120.8,2120.2,2.0]
[1617741796657,0.66860533,2120.8,2120.3,5.67]
[1617741797456,0.66894525,2120.9,2120.3,5.67]
[1617741797657,0.66894525,2120.9,2120.8,5.25315]
[1617741797857,2.90695,2121.1,2120.8,11.16315]
[1617741799858,3.15215,2121.4,2120.8,12.11685]
[1617741800258,3.15215,2121.4,2120.8,13.16315]
[1617741800960,3.15215,2121.4,2120.8,17.76315]
[1617741801560,3.15215,2121.4,2121.3,2.90695]
[1617741801762,3.15215,2121.4,2121.3,5.39125]
[1617741801964,3.15215,2121.4,2121.3,11.29125]
[1617741803365,3.15215,2121.4,2121.3,8.3843]
[1617741803767,3.15215,2121.4,2121.3,5.9]
[1617741804267,3.15215,2121.4,2120.9,5.91]
[1617741804470,5.56675,2121.4,2121.3,5.89]
[1617741804867,6.23337911,2121.4,2121.0,5.86]
[1617741805270,5.56675,2121.4,2120.8,5.77]
[1617741805468,35.56675,2121.4,2121.1,5.75]
[1617741805667,2.90695,2121.2,2121.1,5.75]
[1617741805867,2.90695,2121.2,2120.8,5.86]
[1617741806067,2.90695,2121.2,2120.4,13.6717]
[1617741806068,30.0,2121.1,2120.5,5.65]
[1617741806272,30.0,2121.1,2119.6,13.2194]
[1617741806469,2.0,2121.0,2119.6,13.2194]
[1617741806670,32.4626,2120.9,2120.5,5.76]
[1617741807071,32.4626,2120.9,2119.7,5.74]
[1617741807272,33.12940245,2120.9,2119.7,5.74]
[1617741807473,35.12940245,2120.9,2119.7,5.74]
[1617741807670,35.12940245,2120.9,2119.1,13.6008]
[1617741807671,2.90695,2119.8,2119.5,2.90695]
[1617741807870,5.69445,2119.8,2119.5,2.90695]
[1617741808071,5.69445,2119.8,2119.7,5.65]
[1617741808470,5.69445,2119.8,2119.5,2.90695]
[1617741808671,5.69445,2119.8,2119.7,5.68]
[1617741808971,5.69445,2119.8,2119.6,5.76]
[1617741808972,5.69445,2119.8,2119.5,2.90695]
[1617741809371,5.69445,2119.8,2119.7,5.84]
[1617741809574,5.69445,2119.8,2119.6,5.89]
[1617741809771,5.69445,2119.8,2119.5,2.90695]
[1617741809971,5.69445,2119.8,2119.7,5.87]
[1617741810172,5.69445,2119.8,2119.6,5.84]
[1617741811375,0.66720032,2120.8,2119.6,5.84]
[1617741811577,0.66714084,2121.0,2119.6,8.4116]
[1617741811779,0.66714084,2121.0,2120.4,2.90695]
[1617741811978,0.66714084,2121.0,2120.5,5.67]
[1617741812379,0.66711801,2121.1,2120.5,5.67]
[1617741812779,0.8069459,2121.1,2119.7,5.73]
[1617741812979,3.2319459,2121.1,2120.6,5.92]
[1617741813180,30.66715719,2121.0,2120.6,5.92]
[1617741813379,30.66715719,2121.0,2119.4,3.16]
[1617741813780,30.66715719,2121.0,2119.7,2.90695]
[1617741814181,30.66715719,2121.0,2119.8,5.72]
[1617741814380,0.66716342,2120.9,2119.8,5.72]
[1617741814580,30.66716828,2121.0,2119.8,5.72]
[1617741815683,0.66716828,2121.0,2120.1,2.90695]
[1617741816083,0.66716828,2121.0,2120.2,5.7]
[1617741816482,2.66712271,2121.1,2120.2,5.7]
[1617741816881,0.66712271,2121.1,2120.2,5.7]
[1617741817683,2.90695,2120.3,2120.2,5.7]
[1617741822788,4.87215,2120.3,2120.2,5.7]
[1617741823889,4.87215,2120.3,2119.4,8.80695]
[1617741824092,4.87215,2120.3,2120.2,5.73]
[1617741824488,4.87215,2120.3,2119.4,2.90695]
[1617741824689,4.87215,2120.3,2119.5,5.68]
[1617741825390,2.90695,2120.3,2120.2,4.6]
[1617741825789,2.90695,2120.3,2120.2,10.48]
[1617741830494,4.72315,2120.3,2120.2,10.48]
[1617741835703,2.90695,2120.3,2120.2,10.48]
[1617741836602,32.90695,2120.3,2120.2,10.48]
[1617741836804,35.83375,2120.3,2120.2,10.48]
[1617741837202,37.83375,2120.3,2120.2,10.48]
[1617741837603,37.83375,2120.3,2120.2,4.6]
[1617741845811,37.83375,2120.3,2120.2,4.501]
[1617741847014,37.83375,2120.3,2120.2,3.661]
[1617741847415,5.83375,2120.3,2120.2,3.661]
[1617741847615,2.90695,2120.3,2120.2,3.661]
[1617741847816,2.90695,2120.3,2120.2,9.551]
[1617741852219,1.61408454,2120.7,2120.2,9.551]
[1617741852419,32.66718005,2120.8,2120.2,9.551]
[1617741852720,2.90695,2120.3,2120.2,9.551]
[1617741854426,32.90695,2120.3,2120.2,9.551]
[1617741856028,35.76635,2120.3,2120.2,9.551]
[1617741856627,37.76635,2120.3,2120.2,3.661]
[1617741856828,38.43420691,2120.3,2120.2,3.661]
[1617741858629,37.76635,2120.3,2120.2,3.661]
[1617741859029,38.43421476,2120.3,2120.2,3.661]
[1617741859229,38.43421476,2120.3,2120.2,2.903]
[1617741859831,37.76635,2120.3,2120.2,2.903]
[1617741860231,37.76635,2120.3,2120.2,1.9502]
[1617741860433,38.65693943,2120.3,2120.2,1.9502]
[1617741860732,37.76635,2120.3,2120.2,1.9502]
[1617741863233,38.87963007,2120.3,2120.2,1.9502]
[1617741865536,37.76635,2120.3,2120.2,1.9502]
[1617741867837,38.87923474,2120.3,2120.2,0.5311]
[1617741868538,37.76635,2120.3,2120.2,0.5311]
[1617741873042,37.76635,2120.3,2118.4,2.90695]
[1617741873643,0.66787009,2119.8,2118.4,2.90695]
[1617741873843,3.42807009,2119.8,2118.5,5.78]
[1617741874044,32.0,2119.7,2118.5,5.78]
[1617741874845,32.0,2119.7,2117.3,2.90695]
[1617741874846,2.90695,2118.6,2117.3,2.90695]
[1617741875045,30.0,2118.5,2117.3,2.90695]
[1617741875249,2.7022,2118.5,2117.3,2.90695]
[1617741875447,2.7022,2118.5,2117.4,5.91]
[1617741876049,30.0,2118.4,2117.4,5.91]
[1617741876851,2.90695,2117.5,2117.4,5.91]
[1617741877050,5.64355,2117.5,2117.4,5.91]
[1617741877652,5.64355,2117.5,2116.7,5.82]
[1617741878054,35.64355,2117.5,2117.4,5.69]
[1617741878255,35.64355,2117.5,2116.7,5.84]
[1617741878856,2.90695,2116.8,2116.7,5.84]
[1617741879056,5.02695,2116.8,2116.7,5.84]
[1617741880759,5.02695,2116.8,2116.6,5.9]
[1617741880959,5.02695,2116.8,2116.7,5.88]
[1617741881359,5.02695,2116.8,2116.4,5.67]
[1617741881560,5.02695,2116.8,2116.7,5.87]
[1617741881963,5.02695,2116.8,2116.4,5.83]
[1617741882164,5.02695,2116.8,2116.7,3.32]
[1617741882463,5.02695,2116.8,2115.6,13.5156]
[1617741882662,5.02695,2116.8,2116.5,5.31]
[1617741882865,5.02695,2116.8,2116.7,5.79]
[1617741883064,5.02695,2116.8,2116.3,2.90695]
[1617741883264,5.02695,2116.8,2116.6,4.05]
[1617741883463,5.02695,2116.8,2116.7,5.79]
[1617741883664,5.02695,2116.8,2116.4,0.32]
[1617741883864,2.90695,2116.8,2116.3,2.90695]
[1617741884067,2.90695,2116.8,2116.7,5.88]
[1617741884364,2.90695,2116.8,2116.3,2.90695]
[1617741884765,2.90695,2116.8,2116.4,5.66]
[1617741884965,2.90695,2116.5,2116.4,5.66]
[1617741899887,3.85105,2116.5,2116.4,5.66]
[1617741900087,2.90695,2116.5,2116.4,5.66]
[1617741900691,30.0,2117.7,2116.4,5.66]
[1617741900888,30.9335,2118.1,2116.4,8.5921]
[1617741901090,30.0,2118.1,2117.2,5.54075]
[1617741901288,30.0,2118.1,2117.3,5.82]
[1617741901488,0.6633692,2119.1,2117.3,5.82]
[1617741901689,0.66332939,2119.3,2117.3,5.82]
[1617741902089,32.66330315,2119.4,2117.3,5.82]
[1617741902490,32.0,2119.4,2117.3,5.82]
[1617741903090,32.0,2119.4,2117.9,2.90695]
[1617741903293,32.0,2119.4,2117.9,5.59815]
[1617741903491,32.0,2119.4,2118.0,5.67]
[1617741904993,30.0,2119.3,2118.3,2.90695]
[1617741905396,2.0,2119.2,2118.4,5.82]
[1617741905595,2.0,2119.2,2118.4,7.9087]
[1617741906896,30.0,2119.1,2118.4,7.9087]
[1617741907095,2.90695,2118.5,2118.4,7.9087]
[1617741910901,2.90695,2118.5,2118.4,5.82]
[1617741911298,2.90695,2118.5,2118.0,5.81]
[1617741911500,2.90695,2118.5,2118.4,5.86]
[1617741911902,2.90695,2118.5,2118.0,5.86]
[1617741912102,2.90695,2118.5,2118.4,5.76]
[1617741912303,32.90695,2118.5,2118.4,9.76]
[1617741912503,32.90695,2118.5,2118.4,4.0]
[1617741913104,34.90695,2118.5,2118.4,4.0]
[1617741913305,34.90695,2118.5,2118.4,3.0536]
[1617741917309,32.90695,2118.5,2118.4,3.0536]
[1617741917509,2.90695,2118.5,2118.4,3.0536]
[1617741917711,2.90695,2118.5,2118.4,8.8136]
[1617741919112,2.90695,2118.5,2118.4,8.3961]
[1617741919311,2.90695,2118.5,2118.4,11.30305]
[1617741919512,2.90695,2118.5,2118.4,12.23365]
[1617741919711,2.90695,2118.5,2118.4,9.3267]
[1617741920513,2.90695,2118.5,2118.4,8.3961]
[1617741921714,2.90695,2118.5,2118.4,2.6361]
[1617741924518,32.90695,2118.5,2118.4,2.6361]
[1617741936136,32.90695,2118.5,2118.4,4.7663]
[1617741936336,2.90695,2118.5,2118.4,4.7663]
[1617741936735,2.90695,2118.5,2118.4,10.5163]
[1617741945646,30.9409,2119.5,2118.4,10.5163]
[1617741945846,30.0,2119.4,2118.4,10.5163]
[1617741947451,2.90695,2118.5,2118.4,10.5163]
[1617741954660,2.90695,2118.5,2118.4,12.5163]
[1617741961465,2.90695,2118.5,2118.4,10.5163]
[1617741965572,2.90695,2118.5,2118.4,13.42325]
[1617741970571,0.66822591,2119.4,2118.4,13.42325]
[1617741971173,0.66819309,2119.5,2118.4,13.42325]
[1617741971773,0.66819309,2119.5,2118.9,5.62065]
[1617741971974,1.62339309,2119.5,2119.0,5.79]
[1617741972575,0.66819309,2119.5,2119.0,5.79]
[1617741973775,2.90695,2119.1,2119.0,5.79]
[1617741975483,2.90695,2119.1,2118.5,5.94]
[1617741975678,2.90695,2118.6,2118.5,5.94]
[1617741975879,2.90695,2118.6,2118.4,5.54305]
[1617741976077,2.90695,2118.6,2118.5,5.69]
[1617741983489,2.90695,2118.6,2118.5,5.1473]
[1617741984893,2.90695,2118.6,2118.5,3.5213]
[1617741985291,2.90695,2118.6,2118.5,3.1725]
[1617741985690,32.90695,2118.6,2118.4,2.6361]
[1617741986093,32.90695,2118.6,2118.4,1.5325]
[1617741986691,32.90695,2118.6,2118.4,0.5935]
[1617741986891,35.57581611,2118.6,2118.4,0.1175]
[1617741987291,0.66899834,2118.5,2118.4,0.1175]
[1617741987692,36.02198577,2118.6,2118.4,0.1175]
[1617741988295,0.89202357,2118.5,2118.4,0.1175]
[1617741989493,34.90695,2118.6,2118.4,0.1175]
[1617741990094,0.89201596,2118.5,2118.4,0.1175]
[1617741990795,34.90695,2118.6,2118.4,0.1175]
[1617741991095,36.86366664,2118.6,2118.4,0.1175]
[1617741991598,34.90695,2118.6,2118.4,0.1175]
[1617741991998,1.11651273,2118.5,2118.4,0.1175]
[1617741992398,34.90695,2118.6,2118.4,0.1175]
[1617741992698,34.90695,2118.6,2118.4,0.0147]
[1617741992999,36.86375356,2118.6,2118.4,0.0147]
[1617741993398,38.81842098,2118.6,2118.4,0.0147]
[1617741993800,39.93553486,2118.6,2116.4,13.1444]
[1617741994203,0.67011451,2117.3,2116.4,13.1444]
[1617741994398,0.67011451,2117.3,2116.5,5.71]
[1617741994899,0.81015788,2117.3,2116.5,5.71]
[1617741995798,2.90695,2116.6,2116.5,5.71]
[1617741996698,0.67011451,2117.3,2116.5,5.71]
[1617741996901,0.67006922,2117.5,2116.5,5.71]
[1617741997302,30.0,2117.8,2116.5,5.71]
[1617741997801,2.90695,2116.6,2116.5,5.71]
[1617742031649,30.0,2118.0,2116.5,5.71]
[1617742031849,0.66505777,2118.2,2116.5,8.3886]
[1617742032050,1.59538188,2118.3,2117.1,2.90695]
[1617742032251,0.66498188,2118.3,2117.1,4.78325]
[1617742032451,32.66496954,2118.4,2117.2,5.95]
[1617742033854,32.0,2118.4,2117.2,5.95]
[1617742034057,2.90695,2117.3,2117.2,5.95]
[1617742037060,2.90695,2117.3,2116.6,5.93]
[1617742037459,2.90695,2117.3,2117.2,5.68]
[1617742037859,2.90695,2117.3,2116.5,5.72]
[1617742038059,2.90695,2117.3,2117.2,5.9]
[1617742038259,32.0763,2117.6,2117.2,5.9]
[1617742038461,32.0763,2117.6,2116.5,8.83695]
[1617742038660,32.0763,2117.6,2117.2,5.89]
[1617742039059,32.0763,2117.6,2116.6,5.94]
[1617742039459,32.0763,2117.6,2116.5,2.90695]
[1617742039460,32.0763,2117.6,2117.3,5.71]
[1617742039660,32.0763,2117.6,2116.6,5.79]
[1617742039860,32.0763,2117.6,2117.4,5.68]
[1617742040160,2.90695,2117.5,2116.5,2.90695]
[1617742040360,32.90695,2117.5,2116.6,5.78]
[1617742042170,2.90695,2116.7,2116.6,5.78]
[1617742042763,2.90695,2116.7,2116.5,5.81]
[1617742044267,2.90695,2116.7,2116.4,5.8]
[1617742044464,2.90695,2116.7,2116.3,5.77]
[1617742044664,2.90695,2116.7,2116.6,5.78]
[1617742044862,2.90695,2116.7,2116.2,2.90695]
[1617742044863,2.90695,2116.7,2116.5,5.8]
[1617742045063,2.90695,2116.7,2116.3,5.78]
[1617742045263,2.90695,2116.7,2116.2,2.90695]
[1617742045664,2.90695,2116.7,2116.3,5.68]
[1617742046266,2.90695,2116.4,2116.3,5.68]
[1617742047567,5.38725,2116.4,2116.3,5.68]
[1617742055974,35.38725,2116.4,2115.2,25.454]
[1617742056175,35.38725,2116.4,2115.2,12.81]
[1617742056376,5.71045,2115.3,2115.2,12.81]
[1617742056776,5.71045,2115.3,2115.2,18.65]
[1617742058981,2.90695,2115.3,2115.2,18.65]
[1617742063684,30.9554,2116.9,2115.2,21.2826]
[1617742063886,30.0,2116.9,2115.2,21.2826]
[1617742064285,30.0,2116.9,2115.6,2.90695]
[1617742064485,2.0,2116.8,2115.6,2.90695]
[1617742064685,32.0934,2116.7,2115.7,5.79]
[1617742065987,2.0934,2116.7,2115.7,5.79]
[1617742066186,2.0,2116.8,2115.7,5.79]
[1617742066386,2.0,2116.8,2116.1,2.90695]
[1617742066588,2.0,2116.8,2115.7,5.79]
[1617742066789,0.9481,2116.9,2115.7,5.79]
[1617742066989,0.9481,2116.9,2115.5,5.86]
[1617742067191,0.9481,2116.9,2115.8,5.78]
[1617742067591,0.9481,2116.9,2115.5,5.86]
[1617742067791,0.9481,2116.9,2115.9,5.7]
[1617742068091,0.9481,2116.9,2115.5,5.73]
[1617742068291,0.9481,2116.9,2115.7,2.90695]
[1617742068692,0.9481,2116.9,2115.8,5.69]
[1617742070295,2.90695,2115.9,2115.8,5.69]
[1617742071095,2.0,2117.2,2115.8,5.69]
[1617742071296,0.66740468,2117.5,2115.8,5.69]
[1617742071695,30.0,2117.6,2115.8,5.69]
[1617742071696,30.6673765,2117.6,2115.8,5.69]
[1617742071898,30.0,2117.6,2115.8,18.8409]
[1617742072294,30.0,2117.6,2116.5,2.90695]
[1617742072496,30.0,2117.6,2116.5,5.31505]
[1617742072695,30.0,2117.6,2116.6,5.78]
[1617742073097,32.0,2117.6,2116.6,5.78]
[1617742073896,30.0,2117.5,2115.9,5.92]
[1617742074097,2.0,2117.4,2116.7,5.67]
[1617742074298,30.0,2117.3,2116.7,5.67]
[1617742074497,2.90695,2116.8,2115.9,8.75695]
[1617742074696,2.90695,2116.8,2115.9,2.90695]
[1617742074998,2.90695,2116.8,2116.0,5.8]
[1617742076499,2.90695,2116.1,2116.0,5.8]
[1617742078500,0.9448,2116.9,2116.0,5.8]
[1617742078700,0.67011196,2117.0,2116.0,8.7604]
[1617742079103,0.67006972,2117.1,2116.0,8.7604]
[1617742079500,0.67006972,2117.1,2116.0,10.7604]
[1617742079702,0.67005226,2117.2,2116.0,10.7604]
[1617742080402,0.67005226,2117.2,2116.7,2.90695]
[1617742080605,0.67005226,2117.2,2116.7,5.04165]
[1617742080805,0.81005611,2117.3,2116.8,5.73]
[1617742081205,0.67000924,2117.3,2116.8,5.73]
[1617742081805,0.67000924,2117.3,2116.0,2.9604]
[1617742081806,0.67000924,2117.3,2116.1,5.94]
[1617742082209,0.67005913,2117.2,2116.1,5.94]
[1617742082410,2.90695,2116.2,2116.1,8.84695]
[1617742082609,2.90695,2116.2,2116.1,2.90695]
[1617742083009,2.90695,2116.2,2116.1,8.70695]
[1617742094925,0.6700849,2117.0,2116.1,8.70695]
[1617742095329,0.67034502,2117.1,2116.1,8.70695]
[1617742096226,0.67034502,2117.1,2116.1,11.23325]
[1617742096626,0.67034502,2117.1,2116.7,2.90695]
[1617742097027,0.67034502,2117.1,2116.8,5.69]
[1617742098128,0.67034502,2117.1,2116.7,2.90695]
[1617742098528,2.90695,2116.8,2116.7,2.90695]
[1617742098729,3.84795,2116.8,2116.7,2.90695]
[1617742098928,2.90695,2116.8,2116.7,2.90695]
[1617742099328,2.90695,2116.8,2116.7,8.63695]
[1617742105339,2.90695,2116.8,2116.7,11.13115]
[1617742110046,2.90695,2116.8,2116.7,8.63695]
[1617742112447,3.85345,2116.8,2116.7,8.63695]
[1617742112646,5.76685,2116.8,2116.0,2.90695]
[1617742113047,35.76685,2116.8,2116.0,2.90695]
[1617742113252,35.76685,2116.8,2116.1,5.95]
[1617742113447,2.0,2116.7,2116.1,5.95]
[1617742113657,30.0,2116.6,2114.9,13.4549]
[1617742113850,2.0,2116.5,2114.9,13.4549]
[1617742114050,30.0,2116.4,2114.9,13.4549]
[1617742114251,32.0,2116.4,2115.0,5.77]
[1617742114649,32.0,2116.4,2115.3,2.90695]
[1617742114850,32.67054754,2116.4,2115.3,2.90695]
[1617742115052,32.67054754,2116.4,2115.4,5.8]
[1617742115252,32.0,2116.4,2115.4,5.8]
[1617742116652,2.90695,2115.5,2115.4,5.8]
[1617742116852,5.74155,2115.5,2115.4,5.8]
[1617742122357,2.90695,2115.5,2115.4,5.8]
[1617742122557,0.67002987,2116.5,2115.4,5.8]
[1617742122757,0.67002987,2116.5,2115.7,2.90695]
[1617742122957,0.67002987,2116.5,2115.7,5.48065]
[1617742123158,0.66998584,2116.7,2115.8,5.76]
[1617742123963,0.67055555,2116.6,2115.8,5.76]
[1617742124359,0.81063825,2116.6,2115.8,5.76]
[1617742124758,0.67055555,2116.6,2116.0,2.90695]
[1617742125058,0.67055555,2116.6,2116.1,5.89]
[1617742125259,0.67055555,2116.6,2116.1,5.83]
[1617742125860,0.67055555,2116.6,2115.8,5.71]
[1617742126059,0.67055555,2116.6,2116.2,5.86]
[1617742126460,0.67055555,2116.6,2115.9,5.67]
[1617742126659,0.67057063,2116.5,2115.0,13.6027]
[1617742126859,0.67057063,2116.5,2115.6,2.90695]
[1617742127061,0.81066146,2116.5,2115.6,2.90695]
[1617742127262,0.81066146,2116.5,2115.7,5.75]
[1617742128764,2.90695,2115.8,2115.7,5.75]
[1617742136567,2.90695,2115.8,2115.1,2.90695]
[1617742136568,2.90695,2115.8,2115.2,5.69]
[1617742136969,0.67046314,2116.4,2115.5,2.90695]
[1617742137170,0.67046314,2116.4,2115.6,5.69]
[1617742137968,0.81057265,2116.4,2115.6,5.69]
[1617742138868,2.90695,2115.7,2115.6,5.69]
[1617742139069,4.95635,2115.7,2115.6,5.69]
[1617742141771,2.90695,2115.7,2115.6,5.69]
[1617742145173,2.90695,2115.7,2115.1,2.90695]
[1617742145174,2.90695,2115.7,2115.1,8.75695]
[1617742146875,2.90695,2115.2,2115.1,8.75695]
[1617742151482,2.378,2115.5,2115.1,8.75695]
[1617742151682,2.1181,2116.0,2115.1,8.75695]
[1617742151883,7.26342403,2118.3,2115.1,8.75695]
[1617742151884,3.0891159,2116.5,2115.1,8.75695]
[1617742152083,0.6698159,2116.5,2115.1,8.75695]
[1617742152883,0.6698159,2116.5,2115.6,2.90695]
[1617742153283,2.7169159,2116.5,2115.1,5.85]
[1617742153483,32.0,2116.4,2114.2,15.4117]
[1617742153685,32.66983535,2116.4,2114.2,15.4117]
[1617742153883,32.66983535,2116.4,2115.0,5.77]
[1617742154385,0.66984211,2116.3,2115.0,5.77]
[1617742154887,0.66984211,2116.3,2115.1,2.90695]
[1617742155487,0.66984211,2116.3,2115.2,5.88]
[1617742156287,30.66983788,2116.4,2115.2,5.88]
[1617742156687,2.0,2116.3,2115.2,5.88]
[1617742156887,32.0,2116.3,2115.2,5.88]
[1617742157087,2.90695,2115.3,2115.2,5.88]
[1617742170898,5.71285,2115.3,2115.2,5.88]
[1617742173303,5.71285,2115.3,2115.1,2.90695]
[1617742173503,5.71285,2115.3,2115.2,5.74]
[1617742177007,5.71285,2115.3,2115.1,2.90695]
[1617742177809,5.71285,2115.3,2115.2,5.9]
[1617742178914,5.71285,2115.3,2115.1,2.90695]
[1617742180018,5.71285,2115.3,2115.2,5.82]
[1617742182715,35.71285,2115.3,2115.1,2.90695]
[1617742182916,5.71285,2115.3,2115.1,2.90695]
[1617742184516,35.71285,2115.3,2115.1,2.90695]
[1617742184716,5.71285,2115.3,2115.1,2.90695]
[1617742185018,35.71285,2115.3,2115.1,2.90695]
[1617742186117,5.71285,2115.3,2115.1,2.90695]
[1617742186317,5.71285,2115.3,2115.2,5.81]
[1617742192537,2.90695,2115.3,2115.2,5.81]
[1617742208153,2.90695,2115.3,2115.2,8.4477]
[1617742209855,0.67050979,2116.1,2115.2,8.4477]
[1617742210255,0.67049576,2116.2,2115.2,8.4477]
[1617742211257,0.67049576,2116.2,2115.3,2.0]
[1617742211654,0.67049576,2116.2,2115.8,2.90695]
[1617742211855,0.6704559,2116.3,2115.8,5.88435]
[1617742212055,0.6704559,2116.3,2115.9,5.82]
[1617742212658,1.42400174,2117.0,2115.9,5.82]
[1617742212659,0.67042195,2116.4,2115.9,5.82]
[1617742212956,0.6704067,2116.5,2115.9,5.82]
[1617742213658,2.90695,2116.0,2115.9,5.82]
[1617742220060,0.6701195,2116.8,2115.9,5.82]
[1617742220463,0.6700878,2116.9,2115.9,5.82]
[1617742220861,0.67005791,2117.0,2115.9,5.82]
[1617742221061,0.67005791,2117.0,2116.0,2.0]
[1617742221261,31.11676319,2117.4,2116.0,2.0]
[1617742221465,1.11676319,2117.4,2116.1,5.79]
[1617742221663,0.67005444,2117.0,2116.6,2.90695]
[1617742221865,0.67005444,2117.0,2116.6,5.28805]
[1617742222264,0.67005444,2117.0,2116.7,2.99]
[1617742223665,2.90695,2116.8,2116.7,2.99]
[1617742229873,2.90695,2116.8,2116.7,5.89695]
[1617742231276,0.66897366,2117.5,2116.7,5.89695]
[1617742231676,1.42459487,2117.9,2117.0,2.90695]
[1617742231677,0.66891088,2117.7,2117.0,2.90695]
[1617742232078,0.66891088,2117.7,2117.1,5.86]
[1617742232278,0.66891088,2117.7,2117.1,8.3642]
[1617742232477,0.66891088,2117.7,2117.1,2.5042]
[1617742232679,0.66892996,2117.6,2117.1,2.5042]
[1617742232879,0.66892996,2117.6,2117.2,5.73]
[1617742233786,2.90695,2117.3,2117.2,5.73]
[1617742234185,2.90695,2117.3,2117.1,2.5042]
[1617742237394,2.90695,2117.3,2116.6,5.28805]
[1617742237789,2.90695,2116.7,2116.6,5.28805]
[1617742238387,2.90695,2116.7,2116.6,11.22805]
[1617742238991,0.6689129,2117.7,2116.6,11.22805]
[1617742239889,0.6689129,2117.7,2117.0,2.90695]
[1617742240089,0.14003722,2117.7,2117.0,2.90695]
[1617742240289,0.14003722,2117.7,2117.1,8.6058]
[1617742240489,30.66864121,2117.8,2117.1,8.6058]
[1617742240690,30.66864121,2117.8,2117.1,2.8458]
[1617742240892,30.66864121,2117.8,2117.2,5.89]
[1617742241692,1.61487135,2117.9,2117.2,5.89]
[1617742241890,2.90695,2117.3,2117.2,8.79695]
[1617742243291,0.66754805,2118.1,2117.2,8.79695]
[1617742243693,1.36266769,2118.4,2117.2,8.79695]
[1617742243694,0.66747451,2118.2,2117.2,8.79695]
[1617742243891,0.66747451,2118.2,2117.9,4.79725]
[1617742244103,0.66741853,2118.3,2117.9,4.79725]
[1617742244299,0.66741853,2118.3,2118.0,5.77]
[1617742244495,0.6673763,2118.6,2118.0,5.77]
[1617742245796,0.66734622,2118.7,2118.0,5.77]
[1617742245995,0.66734622,2118.7,2118.4,2.90695]
[1617742246197,0.66734622,2118.7,2118.4,5.18675]
[1617742246396,0.66734622,2118.7,2118.5,5.72]
[1617742247002,0.66734622,2118.7,2118.4,5.18675]
[1617742247798,0.66733392,2118.8,2118.5,5.77]
[1617742247999,2.90695,2118.6,2118.5,5.77]
[1617742260917,2.90695,2118.6,2118.1,5.7]
[1617742261919,2.90695,2118.2,2118.1,5.7]
[1617742262120,2.90695,2118.2,2118.0,5.81]
[1617742262519,2.90695,2118.2,2118.1,5.71]
[1617742262720,2.90695,2118.2,2117.6,2.90695]
[1617742262920,2.90695,2118.2,2117.8,5.75]
[1617742263120,2.90695,2118.2,2118.1,5.78]
[1617742263320,2.90695,2118.2,2117.7,5.69]
[1617742263321,2.90695,2118.2,2117.6,2.90695]
[1617742263520,2.90695,2118.2,2117.9,5.92]
[1617742263720,2.90695,2118.2,2118.1,5.69]
[1617742263920,2.90695,2118.2,2117.6,2.90695]
[1617742264123,2.90695,2118.2,2118.0,5.78]
[1617742264320,2.90695,2118.2,2118.1,0.07]